[Event "Titled Tuesday Blitz January 10 Early 2023"]
[White "Lesbekova, Assel"]
[Black "Mendez Fortes, Eduardo Jesus"]
[WhiteFideId "13713248"]
[BlackFideId "3502376"]
[WhiteElo "1772"]
[BlackElo "2250"]
[Result "0-1"]
[Round "10"]
[TimeControl "180+2"]
[Date "2023.01.10"]
[WhiteClock "0:00:33"]
[BlackClock "0:01:10"]

1. e4 {[%clk 0:03:00]}  e5 {[%clk 0:02:56]} 2. Nf3 {[%clk 0:03:00]}  Nc6 {[%clk 0:02:53]} 3. d4 {[%clk 0:02:59]}  exd4 {[%clk 0:02:53]} 4. Nxd4 {[%clk 0:03:00]}  Nf6 {[%clk 0:02:52]} 5. Nc3 {[%clk 0:02:52]}  Bb4 {[%clk 0:02:51]} 6. Nxc6 {[%clk 0:02:52]}  bxc6 {[%clk 0:02:52]} 7. Qd4 {[%clk 0:02:52]}  Qe7 {[%clk 0:02:49]} 8. Bd3 {[%clk 0:02:35]}  d5 {[%clk 0:02:43]} 9. O-O {[%clk 0:02:30]}  c5 {[%clk 0:02:34]} 10. Qe3 {[%clk 0:02:30]}  d4 {[%clk 0:02:34]} 11. Qd2 {[%clk 0:02:27]}  dxc3 {[%clk 0:02:33]} 12. bxc3 {[%clk 0:02:28]}  Ba5 {[%clk 0:02:33]} 13. e5 {[%clk 0:02:24]}  Nd7 {[%clk 0:02:26]} 14. Rb1 {[%clk 0:02:20]}  O-O {[%clk 0:02:23]} 15. Be4 {[%clk 0:02:20]}  Ba6 {[%clk 0:02:22]} 16. Bxa8 {[%clk 0:02:16]}  Bxf1 {[%clk 0:02:21]} 17. Bc6 {[%clk 0:02:15]}  Nxe5 {[%clk 0:02:18]} 18. Kxf1 {[%clk 0:02:11]}  Nxc6 {[%clk 0:02:17]} 19. Qd5 {[%clk 0:02:11]}  Rd8 {[%clk 0:02:14]} 20. Qh5 {[%clk 0:02:03]}  Bxc3 {[%clk 0:02:08]} 21. Be3 {[%clk 0:02:03]}  Bd4 {[%clk 0:02:04]} 22. Bg5 {[%clk 0:02:00]}  Bf6 {[%clk 0:02:03]} 23. Re1 {[%clk 0:01:56]}  Qd6 {[%clk 0:02:01]} 24. Bxf6 {[%clk 0:01:50]}  Qxf6 {[%clk 0:02:02]} 25. Qxc5 {[%clk 0:01:50]}  h6 {[%clk 0:01:59]} 26. g3 {[%clk 0:01:43]}  Qd6 {[%clk 0:01:54]} 27. Qf5 {[%clk 0:01:37]}  Nd4 {[%clk 0:01:53]} 28. Qd3 {[%clk 0:01:37]}  Ne6 {[%clk 0:01:50]} 29. Qe3 {[%clk 0:01:35]}  Qd4 {[%clk 0:01:49]} 30. Qa3 {[%clk 0:01:35]}  Qc4+ {[%clk 0:01:47]} 31. Kg1 {[%clk 0:01:32]}  Nd4 {[%clk 0:01:47]} 32. Re7 {[%clk 0:01:10]}  Qd5 {[%clk 0:01:41]} 33. h4 {[%clk 0:00:53]}  c5 {[%clk 0:01:29]} 34. Qe3 {[%clk 0:00:42]}  Nf5 {[%clk 0:01:21]} 35. Re8+ {[%clk 0:00:41]}  Rxe8 {[%clk 0:01:21]} 36. Qxe8+ {[%clk 0:00:42]}  Kh7 {[%clk 0:01:21]} 37. Qb8 {[%clk 0:00:36]}  Qd1+ {[%clk 0:01:15]} 38. Kg2 {[%clk 0:00:35]}  Qxc2 {[%clk 0:01:13]} 39. Qxa7 {[%clk 0:00:35]}  Qe4+ {[%clk 0:01:12]} 40. f3 {[%clk 0:00:34]}  Qe2+ {[%clk 0:01:12]} 41. Kh3 {[%clk 0:00:33]}  Qxf3 {[%clk 0:01:11]} 42. Qc7 {[%clk 0:00:33]}  c4 {[%clk 0:01:10]} 0-1


[Site "https://www.chess.com"]

[Event "Titled Tuesday Blitz January 10 Early 2023"]
[White "Renjith, Sravan"]
[Black "Kuznecovs, Nikita"]
[WhiteFideId "4306783"]
[BlackFideId "11604557"]
[WhiteElo "2172"]
[BlackElo "2287"]
[Result "0-1"]
[Round "10"]
[TimeControl "180+2"]
[Date "2023.01.10"]
[WhiteClock "0:00:06"]
[BlackClock "0:00:05"]

1. Nf3 {[%clk 0:03:00]}  Nf6 {[%clk 0:02:59]} 2. d4 {[%clk 0:03:00]}  e6 {[%clk 0:02:57]} 3. Bf4 {[%clk 0:02:57]}  b5 {[%clk 0:02:51]} 4. Nbd2 {[%clk 0:02:54]}  Bb7 {[%clk 0:02:50]} 5. h3 {[%clk 0:02:33]}  c5 {[%clk 0:02:33]} 6. c3 {[%clk 0:02:31]}  a6 {[%clk 0:02:22]} 7. Qc2 {[%clk 0:02:29]}  Nc6 {[%clk 0:02:14]} 8. e3 {[%clk 0:02:28]}  Rc8 {[%clk 0:02:11]} 9. Be2 {[%clk 0:02:24]}  Qb6 {[%clk 0:01:13]} 10. dxc5 {[%clk 0:01:47]}  Bxc5 {[%clk 0:01:12]} 11. O-O {[%clk 0:01:48]}  Rg8 {[%clk 0:01:02]} 12. Rad1 {[%clk 0:01:37]}  h6 {[%clk 0:00:58]} 13. Ne4 {[%clk 0:01:32]}  Nxe4 {[%clk 0:00:57]} 14. Qxe4 {[%clk 0:01:32]}  Nd4 {[%clk 0:00:49]} 15. Qd3 {[%clk 0:01:32]}  Nxe2+ {[%clk 0:00:34]} 16. Qxe2 {[%clk 0:01:29]}  g5 {[%clk 0:00:33]} 17. Bg3 {[%clk 0:01:22]}  h5 {[%clk 0:00:26]} 18. Ne5 {[%clk 0:01:19]}  d6 {[%clk 0:00:25]} 19. Nd3 {[%clk 0:01:03]}  Qc6 {[%clk 0:00:23]} 20. f3 {[%clk 0:01:00]}  g4 {[%clk 0:00:20]} 21. Nxc5 {[%clk 0:00:58]}  dxc5 {[%clk 0:00:20]} 22. e4 {[%clk 0:00:46]}  gxh3 {[%clk 0:00:19]} 23. Kh2 {[%clk 0:00:37]}  h4 {[%clk 0:00:18]} 24. gxh3 {[%clk 0:00:32]}  hxg3+ {[%clk 0:00:17]} 25. Kg2 {[%clk 0:00:32]}  Rd8 {[%clk 0:00:16]} 26. Rxd8+ {[%clk 0:00:31]}  Kxd8 {[%clk 0:00:17]} 27. Rd1+ {[%clk 0:00:31]}  Kc8 {[%clk 0:00:17]} 28. Qd2 {[%clk 0:00:32]}  Qc7 {[%clk 0:00:17]} 29. Qh6 {[%clk 0:00:31]}  Kb8 {[%clk 0:00:16]} 30. Qh7 {[%clk 0:00:30]}  Re8 {[%clk 0:00:17]} 31. Qg7 {[%clk 0:00:27]}  f5 {[%clk 0:00:17]} 32. Qxc7+ {[%clk 0:00:25]}  Kxc7 {[%clk 0:00:17]} 33. exf5 {[%clk 0:00:26]}  exf5 {[%clk 0:00:15]} 34. Kxg3 {[%clk 0:00:26]}  Re3 {[%clk 0:00:14]} 35. Rf1 {[%clk 0:00:25]}  Re2 {[%clk 0:00:14]} 36. h4 {[%clk 0:00:24]}  Rxb2 {[%clk 0:00:13]} 37. h5 {[%clk 0:00:24]}  Rxa2 {[%clk 0:00:13]} 38. h6 {[%clk 0:00:24]}  f4+ {[%clk 0:00:13]} 39. Kxf4 {[%clk 0:00:17]}  Rh2 {[%clk 0:00:13]} 40. Kg5 {[%clk 0:00:18]}  a5 {[%clk 0:00:12]} 41. f4 {[%clk 0:00:18]}  b4 {[%clk 0:00:11]} 42. cxb4 {[%clk 0:00:18]}  axb4 {[%clk 0:00:11]} 43. f5 {[%clk 0:00:18]}  Bd5 {[%clk 0:00:11]} 44. f6 {[%clk 0:00:18]}  Bf7 {[%clk 0:00:11]} 45. Re1 {[%clk 0:00:18]}  Kd6 {[%clk 0:00:11]} 46. Rd1+ {[%clk 0:00:17]}  Kc7 {[%clk 0:00:10]} 47. Re1 {[%clk 0:00:18]}  Bd5 {[%clk 0:00:09]} 48. Kg6 {[%clk 0:00:15]}  b3 {[%clk 0:00:09]} 49. h7 {[%clk 0:00:15]}  c4 {[%clk 0:00:08]} 50. Kg7 {[%clk 0:00:13]}  c3 {[%clk 0:00:08]} 51. Re3 {[%clk 0:00:12]}  c2 {[%clk 0:00:08]} 52. Rc3+ {[%clk 0:00:11]}  Kd6 {[%clk 0:00:08]} 53. Rc8 {[%clk 0:00:09]}  b2 {[%clk 0:00:08]} 54. Rxc2 {[%clk 0:00:08]}  Rxc2 {[%clk 0:00:07]} 55. h8=Q {[%clk 0:00:09]}  Rg2+ {[%clk 0:00:06]} 56. Kf8 {[%clk 0:00:09]}  Rg8+ {[%clk 0:00:05]} 57. Qxg8 {[%clk 0:00:09]}  Bxg8 {[%clk 0:00:06]} 58. Kxg8 {[%clk 0:00:09]}  b1=Q {[%clk 0:00:06]} 59. f7 {[%clk 0:00:08]}  Qg6+ {[%clk 0:00:04]} 60. Kh8 {[%clk 0:00:08]}  Qh5+ {[%clk 0:00:04]} 61. Kg8 {[%clk 0:00:08]}  Qg5+ {[%clk 0:00:05]} 62. Kf8 {[%clk 0:00:06]}  Ke6 {[%clk 0:00:04]} 63. Ke8 {[%clk 0:00:06]}  Qe7# {[%clk 0:00:05]} 0-1


[Site "https://www.chess.com"]

[Event "Titled Tuesday Blitz January 10 Early 2023"]
[White "Bazarov, Konstantin"]
[Black "Marn, Jan"]
[WhiteFideId "4137000"]
[BlackFideId "14619245"]
[WhiteElo "2235"]
[BlackElo "2345"]
[Result "0-1"]
[Round "10"]
[TimeControl "180+2"]
[Date "2023.01.10"]
[WhiteClock "0:00:29"]
[BlackClock "0:00:06"]

1. d4 {[%clk 0:02:56]}  d5 {[%clk 0:02:56]} 2. c4 {[%clk 0:02:56]}  c6 {[%clk 0:02:52]} 3. Nc3 {[%clk 0:02:55]}  Nf6 {[%clk 0:02:52]} 4. Nf3 {[%clk 0:02:54]}  e6 {[%clk 0:02:50]} 5. e3 {[%clk 0:02:54]}  Nbd7 {[%clk 0:02:42]} 6. b3 {[%clk 0:02:54]}  Bd6 {[%clk 0:02:41]} 7. Be2 {[%clk 0:02:53]}  O-O {[%clk 0:02:41]} 8. O-O {[%clk 0:02:52]}  Qe7 {[%clk 0:02:41]} 9. Bb2 {[%clk 0:02:52]}  dxc4 {[%clk 0:02:35]} 10. bxc4 {[%clk 0:02:52]}  e5 {[%clk 0:02:35]} 11. Re1 {[%clk 0:02:49]}  Re8 {[%clk 0:02:29]} 12. Qc2 {[%clk 0:02:48]}  e4 {[%clk 0:02:25]} 13. Nd2 {[%clk 0:02:47]}  Nf8 {[%clk 0:02:25]} 14. h3 {[%clk 0:02:38]}  Ng6 {[%clk 0:02:24]} 15. Nf1 {[%clk 0:02:32]}  Bxh3 {[%clk 0:01:39]} 16. gxh3 {[%clk 0:02:27]}  Qd7 {[%clk 0:01:40]} 17. Ng3 {[%clk 0:02:17]}  Qxh3 {[%clk 0:01:40]} 18. Bf1 {[%clk 0:02:17]}  Qh4 {[%clk 0:01:40]} 19. Bg2 {[%clk 0:02:01]}  Ng4 {[%clk 0:01:37]} 20. Ncxe4 {[%clk 0:01:59]}  Qh2+ {[%clk 0:01:36]} 21. Kf1 {[%clk 0:01:58]}  Nh4 {[%clk 0:00:58]} 22. f3 {[%clk 0:01:25]}  Bxg3 {[%clk 0:00:52]} 23. Nxg3 {[%clk 0:01:13]}  Nxe3+ {[%clk 0:00:36]} 24. Rxe3 {[%clk 0:01:12]}  Rxe3 {[%clk 0:00:37]} 25. Qf2 {[%clk 0:01:08]}  Rae8 {[%clk 0:00:30]} 26. Ne4 {[%clk 0:00:50]}  Qxg2+ {[%clk 0:00:23]} 27. Qxg2 {[%clk 0:00:50]}  Nxg2 {[%clk 0:00:23]} 28. Bc1 {[%clk 0:00:47]}  Rxf3+ {[%clk 0:00:13]} 29. Kxg2 {[%clk 0:00:47]}  Rd3 {[%clk 0:00:13]} 30. Nf2 {[%clk 0:00:42]}  Rxd4 {[%clk 0:00:13]} 31. c5 {[%clk 0:00:41]}  Rc4 {[%clk 0:00:12]} 32. Ba3 {[%clk 0:00:41]}  Re3 {[%clk 0:00:12]} 33. Rd1 {[%clk 0:00:40]}  h5 {[%clk 0:00:12]} 34. Rd8+ {[%clk 0:00:37]}  Kh7 {[%clk 0:00:12]} 35. Bb2 {[%clk 0:00:37]}  Rc2 {[%clk 0:00:12]} 36. Bd4 {[%clk 0:00:35]}  Rd3 {[%clk 0:00:07]} 37. Kf1 {[%clk 0:00:31]}  Rdd2 {[%clk 0:00:08]} 38. Rd7 {[%clk 0:00:30]}  f6 {[%clk 0:00:07]} 39. Ne4 {[%clk 0:00:29]}  Rd1# {[%clk 0:00:06]} 0-1


[Site "https://www.chess.com"]

[Event "Titled Tuesday Blitz January 10 Early 2023"]
[White "Kalajzic, Ivan"]
[Black "Buksa, Nataliya"]
[WhiteFideId "14506378"]
[BlackFideId "14123622"]
[WhiteElo "2062"]
[BlackElo "2406"]
[Result "1/2-1/2"]
[Round "10"]
[TimeControl "180+2"]
[Date "2023.01.10"]
[WhiteClock "0:00:15"]
[BlackClock "0:02:01"]

1. d4 {[%clk 0:03:00]}  d5 {[%clk 0:03:00]} 2. Nc3 {[%clk 0:03:00]}  e6 {[%clk 0:03:00]} 3. Nf3 {[%clk 0:02:58]}  Nf6 {[%clk 0:03:00]} 4. Bg5 {[%clk 0:02:59]}  Be7 {[%clk 0:03:00]} 5. Bxf6 {[%clk 0:02:59]}  Bxf6 {[%clk 0:03:00]} 6. e4 {[%clk 0:03:00]}  dxe4 {[%clk 0:03:00]} 7. Nxe4 {[%clk 0:03:00]}  O-O {[%clk 0:03:01]} 8. c3 {[%clk 0:03:01]}  b6 {[%clk 0:03:01]} 9. Bd3 {[%clk 0:03:01]}  Bb7 {[%clk 0:03:01]} 10. Qc2 {[%clk 0:03:02]}  Nd7 {[%clk 0:03:01]} 11. h4 {[%clk 0:03:01]}  Be7 {[%clk 0:02:55]} 12. O-O-O {[%clk 0:02:59]}  Qe8 {[%clk 0:02:50]} 13. g4 {[%clk 0:02:46]}  c5 {[%clk 0:02:50]} 14. g5 {[%clk 0:02:42]}  cxd4 {[%clk 0:02:50]} 15. Nxd4 {[%clk 0:02:42]}  Ne5 {[%clk 0:02:45]} 16. f4 {[%clk 0:02:17]}  Nxd3+ {[%clk 0:02:45]} 17. Qxd3 {[%clk 0:02:17]}  Bc5 {[%clk 0:02:43]} 18. Rhg1 {[%clk 0:01:56]}  Kh8 {[%clk 0:02:43]} 19. Rg3 {[%clk 0:01:37]}  Bxd4 {[%clk 0:02:39]} 20. Qxd4 {[%clk 0:01:36]}  Bxe4 {[%clk 0:02:37]} 21. Qxe4 {[%clk 0:01:36]}  Qb5 {[%clk 0:02:38]} 22. h5 {[%clk 0:01:31]}  Rad8 {[%clk 0:02:38]} 23. Rgd3 {[%clk 0:01:12]}  Rxd3 {[%clk 0:02:37]} 24. Qxd3 {[%clk 0:01:10]}  Qa4 {[%clk 0:02:35]} 25. Qd4 {[%clk 0:01:07]}  Qxd4 {[%clk 0:02:19]} 26. Rxd4 {[%clk 0:01:07]}  h6 {[%clk 0:02:19]} 27. Rd7 {[%clk 0:01:04]}  e5 {[%clk 0:02:18]} 28. gxh6 {[%clk 0:00:51]}  exf4 {[%clk 0:02:18]} 29. hxg7+ {[%clk 0:00:48]}  Kxg7 {[%clk 0:02:19]} 30. Rd4 {[%clk 0:00:48]}  Rh8 {[%clk 0:02:18]} 31. Rxf4 {[%clk 0:00:48]}  Rxh5 {[%clk 0:02:19]} 32. Kc2 {[%clk 0:00:44]}  Re5 {[%clk 0:02:17]} 33. Kd3 {[%clk 0:00:43]}  Kg6 {[%clk 0:02:17]} 34. b4 {[%clk 0:00:42]}  f5 {[%clk 0:02:16]} 35. c4 {[%clk 0:00:42]}  Kg5 {[%clk 0:02:16]} 36. Rf1 {[%clk 0:00:42]}  f4 {[%clk 0:02:17]} 37. Kd4 {[%clk 0:00:42]}  Re2 {[%clk 0:02:15]} 38. a4 {[%clk 0:00:34]}  Kg4 {[%clk 0:02:15]} 39. c5 {[%clk 0:00:34]}  bxc5+ {[%clk 0:02:13]} 40. bxc5 {[%clk 0:00:35]}  f3 {[%clk 0:02:13]} 41. Kd5 {[%clk 0:00:32]}  Rd2+ {[%clk 0:02:10]} 42. Ke6 {[%clk 0:00:31]}  Ra2 {[%clk 0:02:10]} 43. c6 {[%clk 0:00:27]}  Rxa4 {[%clk 0:02:10]} 44. c7 {[%clk 0:00:28]}  Rc4 {[%clk 0:02:10]} 45. Kd7 {[%clk 0:00:28]}  a5 {[%clk 0:02:09]} 46. Ra1 {[%clk 0:00:19]}  f2 {[%clk 0:02:07]} 47. c8=Q {[%clk 0:00:13]}  Rxc8 {[%clk 0:02:03]} 48. Kxc8 {[%clk 0:00:14]}  Kg3 {[%clk 0:02:03]} 49. Kb7 {[%clk 0:00:14]}  Kg2 {[%clk 0:02:00]} 50. Kb6 {[%clk 0:00:15]}  a4 {[%clk 0:02:00]} 51. Kb5 {[%clk 0:00:15]}  a3 {[%clk 0:02:00]} 52. Kb4 {[%clk 0:00:15]}  f1=Q {[%clk 0:02:01]} 53. Rxf1 {[%clk 0:00:15]}  Kxf1 {[%clk 0:02:01]} 54. Kxa3 {[%clk 0:00:15]} 1/2-1/2


[Site "https://www.chess.com"]

[Event "Titled Tuesday Blitz January 10 Early 2023"]
[White "Tomaszewski, Kacper"]
[Black "Doluhanova, Evgeniya"]
[WhiteFideId "1127373"]
[BlackFideId "14112035"]
[WhiteElo "2313"]
[BlackElo "2275"]
[Result "0-1"]
[Round "10"]
[TimeControl "180+2"]
[Date "2023.01.10"]
[WhiteClock "0:00:08"]
[BlackClock "0:00:07"]

1. c4 {[%clk 0:03:00]}  Nf6 {[%clk 0:02:58]} 2. Nf3 {[%clk 0:03:01]}  Nc6 {[%clk 0:02:55]} 3. d4 {[%clk 0:03:00]}  e6 {[%clk 0:02:55]} 4. a3 {[%clk 0:02:57]}  b6 {[%clk 0:02:55]} 5. Nc3 {[%clk 0:02:54]}  Bb7 {[%clk 0:02:55]} 6. e4 {[%clk 0:02:54]}  d6 {[%clk 0:02:55]} 7. d5 {[%clk 0:02:48]}  exd5 {[%clk 0:02:52]} 8. exd5 {[%clk 0:02:47]}  Ne5 {[%clk 0:02:52]} 9. Be2 {[%clk 0:02:42]}  Nxf3+ {[%clk 0:02:50]} 10. Bxf3 {[%clk 0:02:43]}  Be7 {[%clk 0:02:47]} 11. O-O {[%clk 0:02:43]}  O-O {[%clk 0:02:47]} 12. Re1 {[%clk 0:02:42]}  Nd7 {[%clk 0:02:46]} 13. Bf4 {[%clk 0:02:38]}  Bg5 {[%clk 0:02:42]} 14. Bg3 {[%clk 0:02:36]}  Bh4 {[%clk 0:02:40]} 15. Qc2 {[%clk 0:02:20]}  Bxg3 {[%clk 0:02:39]} 16. hxg3 {[%clk 0:02:21]}  Ne5 {[%clk 0:02:36]} 17. Be2 {[%clk 0:02:17]}  Ba6 {[%clk 0:02:35]} 18. Qa4 {[%clk 0:02:14]}  Bc8 {[%clk 0:02:30]} 19. f4 {[%clk 0:02:09]}  Nd7 {[%clk 0:02:15]} 20. b4 {[%clk 0:02:01]}  a5 {[%clk 0:02:14]} 21. Ne4 {[%clk 0:01:48]}  Nf6 {[%clk 0:02:03]} 22. Ng5 {[%clk 0:01:47]}  Bf5 {[%clk 0:01:58]} 23. Qb3 {[%clk 0:01:39]}  h6 {[%clk 0:01:55]} 24. Nf3 {[%clk 0:01:39]}  axb4 {[%clk 0:01:48]} 25. axb4 {[%clk 0:01:38]}  Rxa1 {[%clk 0:01:48]} 26. Rxa1 {[%clk 0:01:39]}  Re8 {[%clk 0:01:48]} 27. Re1 {[%clk 0:01:34]}  Ng4 {[%clk 0:01:23]} 28. Bd3 {[%clk 0:01:33]}  Rxe1+ {[%clk 0:01:16]} 29. Nxe1 {[%clk 0:01:33]}  Qf6 {[%clk 0:01:15]} 30. Bxf5 {[%clk 0:01:19]}  Qxf5 {[%clk 0:01:15]} 31. Nf3 {[%clk 0:00:48]}  Qe4 {[%clk 0:01:06]} 32. Qc3 {[%clk 0:00:39]}  Qb1+ {[%clk 0:00:51]} 33. Qe1 {[%clk 0:00:38]}  Qxe1+ {[%clk 0:00:50]} 34. Nxe1 {[%clk 0:00:38]}  Ne3 {[%clk 0:00:51]} 35. c5 {[%clk 0:00:39]}  dxc5 {[%clk 0:00:44]} 36. bxc5 {[%clk 0:00:40]}  Nxd5 {[%clk 0:00:44]} 37. cxb6 {[%clk 0:00:36]}  cxb6 {[%clk 0:00:44]} 38. Kf2 {[%clk 0:00:37]}  Kf8 {[%clk 0:00:42]} 39. Kf3 {[%clk 0:00:37]}  Ke7 {[%clk 0:00:42]} 40. Ke4 {[%clk 0:00:37]}  Kd6 {[%clk 0:00:40]} 41. Nd3 {[%clk 0:00:34]}  b5 {[%clk 0:00:36]} 42. Ne5 {[%clk 0:00:35]}  f6 {[%clk 0:00:24]} 43. Nd3 {[%clk 0:00:33]}  b4 {[%clk 0:00:23]} 44. Kf5 {[%clk 0:00:31]}  b3 {[%clk 0:00:20]} 45. Kg6 {[%clk 0:00:29]}  Nb4 {[%clk 0:00:18]} 46. Nb2 {[%clk 0:00:26]}  Kd5 {[%clk 0:00:15]} 47. Kxg7 {[%clk 0:00:26]}  Kd4 {[%clk 0:00:16]} 48. Kxf6 {[%clk 0:00:25]}  Nd3 {[%clk 0:00:16]} 49. Na4 {[%clk 0:00:20]}  Kc4 {[%clk 0:00:14]} 50. Ke6 {[%clk 0:00:14]}  Kb4 {[%clk 0:00:15]} 51. f5 {[%clk 0:00:08]}  Kxa4 {[%clk 0:00:13]} 52. f6 {[%clk 0:00:09]}  b2 {[%clk 0:00:10]} 53. f7 {[%clk 0:00:09]}  b1=Q {[%clk 0:00:10]} 54. f8=Q {[%clk 0:00:10]}  Qb6+ {[%clk 0:00:09]} 55. Kd5 {[%clk 0:00:09]}  Nb4+ {[%clk 0:00:08]} 56. Kc4 {[%clk 0:00:08]}  Qb5+ {[%clk 0:00:07]} 57. Kc3 {[%clk 0:00:07]}  Qd3+ {[%clk 0:00:07]} 58. Kb2 {[%clk 0:00:08]}  Qc2+ {[%clk 0:00:07]} 59. Ka1 {[%clk 0:00:08]}  Qa2# {[%clk 0:00:07]} 0-1


[Site "https://www.chess.com"]

[Event "Titled Tuesday Blitz January 10 Early 2023"]
[White "Gutkin, Ilya"]
[Black "Nguyen Hong Nhung"]
[WhiteFideId "16203470"]
[BlackFideId "12412201"]
[WhiteElo "2273"]
[BlackElo "2003"]
[Result "1-0"]
[Round "10"]
[TimeControl "180+2"]
[Date "2023.01.10"]
[WhiteClock "0:00:17"]
[BlackClock "0:00:07"]

1. Nf3 {[%clk 0:03:00]}  f5 {[%clk 0:01:55]} 2. b3 {[%clk 0:03:00]}  Nf6 {[%clk 0:01:56]} 3. Bb2 {[%clk 0:03:00]}  g6 {[%clk 0:01:56]} 4. g3 {[%clk 0:02:59]}  Bg7 {[%clk 0:01:57]} 5. Bg2 {[%clk 0:03:00]}  O-O {[%clk 0:01:57]} 6. O-O {[%clk 0:03:00]}  d6 {[%clk 0:01:58]} 7. d4 {[%clk 0:03:00]}  Ne4 {[%clk 0:01:54]} 8. c4 {[%clk 0:02:59]}  Nc6 {[%clk 0:01:54]} 9. Nc3 {[%clk 0:02:57]}  Nxc3 {[%clk 0:01:55]} 10. Bxc3 {[%clk 0:02:57]}  e5 {[%clk 0:01:55]} 11. dxe5 {[%clk 0:02:56]}  dxe5 {[%clk 0:01:56]} 12. Qd5+ {[%clk 0:02:55]}  Kh8 {[%clk 0:01:57]} 13. Qxd8 {[%clk 0:02:49]}  Rxd8 {[%clk 0:01:57]} 14. Rfd1 {[%clk 0:02:35]}  Rxd1+ {[%clk 0:01:44]} 15. Rxd1 {[%clk 0:02:31]}  e4 {[%clk 0:01:44]} 16. Bxg7+ {[%clk 0:02:25]}  Kxg7 {[%clk 0:01:45]} 17. Nd4 {[%clk 0:02:24]}  Nxd4 {[%clk 0:01:36]} 18. Rxd4 {[%clk 0:02:25]}  Be6 {[%clk 0:01:36]} 19. f3 {[%clk 0:02:25]}  exf3 {[%clk 0:01:34]} 20. exf3 {[%clk 0:02:17]}  Re8 {[%clk 0:01:27]} 21. f4 {[%clk 0:02:16]}  c6 {[%clk 0:01:27]} 22. Kf2 {[%clk 0:02:15]}  Kf6 {[%clk 0:01:27]} 23. c5 {[%clk 0:02:13]}  Bf7 {[%clk 0:01:25]} 24. Rd7 {[%clk 0:02:04]}  Re7 {[%clk 0:01:23]} 25. Rxe7 {[%clk 0:02:04]}  Kxe7 {[%clk 0:01:24]} 26. Ke3 {[%clk 0:02:04]}  a5 {[%clk 0:01:19]} 27. Kd4 {[%clk 0:02:04]}  a4 {[%clk 0:01:15]} 28. bxa4 {[%clk 0:02:03]}  Bxa2 {[%clk 0:01:16]} 29. a5 {[%clk 0:02:03]}  Kd7 {[%clk 0:01:06]} 30. Ke5 {[%clk 0:02:00]}  Bc4 {[%clk 0:00:59]} 31. Bf3 {[%clk 0:01:56]}  Ke7 {[%clk 0:00:58]} 32. g4 {[%clk 0:01:45]}  fxg4 {[%clk 0:00:50]} 33. Bxg4 {[%clk 0:01:46]}  Bd3 {[%clk 0:00:46]} 34. h4 {[%clk 0:01:29]}  Bc4 {[%clk 0:00:38]} 35. h5 {[%clk 0:01:16]}  gxh5 {[%clk 0:00:37]} 36. Bxh5 {[%clk 0:01:17]}  h6 {[%clk 0:00:36]} 37. f5 {[%clk 0:01:16]}  Ba6 {[%clk 0:00:17]} 38. f6+ {[%clk 0:01:14]}  Kf8 {[%clk 0:00:18]} 39. Kd6 {[%clk 0:01:04]}  Bc4 {[%clk 0:00:15]} 40. Kc7 {[%clk 0:00:57]}  Ba6 {[%clk 0:00:14]} 41. Kb6 {[%clk 0:00:35]}  Kg8 {[%clk 0:00:14]} 42. Bf3 {[%clk 0:00:20]}  Kf7 {[%clk 0:00:08]} 43. Bxc6 {[%clk 0:00:20]}  h5 {[%clk 0:00:02]} 44. Bf3 {[%clk 0:00:18]}  h4 {[%clk 0:00:02]} 45. c6 {[%clk 0:00:18]}  Bd3 {[%clk 0:00:01]} 46. cxb7 {[%clk 0:00:17]}  h3 {[%clk 0:00:02]} 47. b8=Q {[%clk 0:00:17]}  Kxf6 {[%clk 0:00:02]} 48. Qf4+ {[%clk 0:00:17]}  Kg6 {[%clk 0:00:03]} 49. Qd6+ {[%clk 0:00:17]}  Kg5 {[%clk 0:00:03]} 50. Qxd3 {[%clk 0:00:17]}  h2 {[%clk 0:00:04]} 51. Bh1 {[%clk 0:00:17]}  Kh4 {[%clk 0:00:05]} 52. Qe2 {[%clk 0:00:17]}  Kg3 {[%clk 0:00:06]} 53. Qg2+ {[%clk 0:00:17]}  Kh4 {[%clk 0:00:06]} 54. Kc5 {[%clk 0:00:16]}  Kh5 {[%clk 0:00:06]} 55. Kd6 {[%clk 0:00:16]}  Kh4 {[%clk 0:00:07]} 56. Ke5 {[%clk 0:00:17]} 1-0


[Site "https://www.chess.com"]